fUSD/lending_fUSD_20260129
["ID","MTS","AMOUNT","RATE_DAILY","PERIOD"]
[403992230,1769704241222,-500.0,0.00016163,2]
[403992231,1769704241231,-433.0,0.00016205,2]
[403992232,1769704241240,-2500.0,0.00016238,2]
[403992233,1769704241249,-263.97014249,0.00016262,2]
[403992234,1769704241258,-220.44060807,0.00016262,2]
[403992235,1769704241267,-500.0,0.00016262,2]
[403992236,1769704241277,-500.0,0.00016262,2]
[403992237,1769704241286,-254.61751898,0.00016262,2]
[403992238,1769704241296,-241.40200902,0.00016264,2]
[403992239,1769704241305,-322.6107,0.00016264,2]
[403992240,1769704241314,-174.61919141,0.00016264,2]
[403992241,1769704241324,-209.40437684,0.00016264,2]
[403992242,1769704241332,-250.0,0.00016264,2]
[403992243,1769704241341,-250.0,0.00016264,2]
[403992244,1769704241350,-500.0,0.00016264,2]
[403992245,1769704241361,-250.0,0.00016264,2]
[403992246,1769704241370,-250.0,0.00016264,2]
[403992247,1769704241380,-500.0,0.00016264,2]
[403992248,1769704241389,-250.0,0.00016264,2]
[403992249,1769704241400,-250.0,0.00016264,2]
[403992250,1769704241410,-500.0,0.00016264,2]
[403992251,1769704241419,-250.0,0.00016264,2]
[403992252,1769704241429,-250.0,0.00016264,2]
[403992253,1769704241438,-500.0,0.00016264,2]
[403992254,1769704241448,-250.0,0.00016264,2]
[403992262,1769704241701,-250.0,0.00016264,2]
[403992263,1769704241713,-500.0,0.00016264,2]
[403992264,1769704241723,-250.0,0.00016264,2]
[403992265,1769704241732,-250.0,0.00016264,2]
[403992266,1769704241742,-500.0,0.00016264,2]
[403992267,1769704241752,-250.0,0.00016264,2]
[403992268,1769704241762,-250.0,0.00016264,2]
[403992269,1769704241771,-500.0,0.00016264,2]
[403992270,1769704241781,-250.0,0.00016264,2]
[403992271,1769704241791,-250.0,0.00016264,2]
[403992272,1769704241802,-500.0,0.00016264,2]
[403992273,1769704241811,-250.0,0.00016264,2]
[403992274,1769704241821,-250.0,0.00016264,2]
[403992275,1769704241831,-500.0,0.00016264,2]
[403992276,1769704241840,-250.0,0.00016264,2]
[403992277,1769704241850,-250.0,0.00016264,2]
[403992278,1769704241860,-250.0,0.00016264,2]
[403992279,1769704241870,-500.0,0.00016264,2]
[403992280,1769704241879,-250.0,0.00016264,2]
[403992281,1769704241888,-500.0,0.00016264,2]
[403992282,1769704241898,-500.0,0.00016264,2]
[403992283,1769704241907,-500.0,0.00016264,2]
[403992284,1769704241917,-500.0,0.00016264,2]
[403992285,1769704241927,-500.0,0.00016264,2]
[403992286,1769704241936,-500.0,0.00016264,2]
[403992287,1769704241945,-500.0,0.00016264,2]
[403992288,1769704241955,-578.20924308,0.00016264,2]
[403992289,1769704241964,-500.0,0.00016264,2]
[403992290,1769704241973,-250.0,0.00016264,2]
[403992291,1769704241982,-500.0,0.00016264,2]
[403992292,1769704241992,-250.0,0.00016264,2]
[403992293,1769704242001,-500.0,0.00016264,2]
[403992294,1769704242011,-250.0,0.00016264,2]
[403992295,1769704242020,-500.0,0.00016264,2]
[403992296,1769704242030,-250.0,0.00016264,2]
[403992297,1769704242039,-151.0,0.00016264,2]
[403992298,1769704242048,-209.40437684,0.00016264,2]
[403992299,1769704242058,-500.0,0.00016264,2]
[403992300,1769704242067,-250.0,0.00016264,2]
[403992301,1769704242076,-500.0,0.00016264,2]
[403992302,1769704242086,-250.0,0.00016264,2]
[403992303,1769704242095,-500.0,0.00016264,2]
[403992304,1769704242104,-250.0,0.00016264,2]
[403992305,1769704242113,-500.0,0.00016264,2]
[403992306,1769704242122,-250.0,0.00016264,2]
[403992307,1769704242132,-500.0,0.00016264,2]
[403992308,1769704242141,-250.0,0.00016264,2]
[403992309,1769704242152,-500.0,0.00016264,2]
[403992310,1769704242161,-250.0,0.00016264,2]
[403992311,1769704242171,-500.0,0.00016264,2]
[403992312,1769704242180,-500.0,0.00016264,2]
[403992313,1769704242190,-250.0,0.00016264,2]
[403992314,1769704242199,-500.0,0.00016264,2]
[403992315,1769704242209,-250.0,0.00016264,2]
[403992316,1769704242218,-500.0,0.00016264,2]
[403992317,1769704242228,-250.0,0.00016264,2]
[403992318,1769704242237,-500.0,0.00016264,2]
[403992319,1769704242246,-854.2589148,0.00016264,2]
[403992320,1769704242256,-250.0,0.00016264,2]
[403992321,1769704242265,-500.0,0.00016264,2]
[403992322,1769704242274,-250.0,0.00016264,2]
[403992323,1769704242283,-250.0,0.00016264,2]
[403992324,1769704242293,-250.0,0.00016264,2]
[403992325,1769704242302,-1000.0,0.00016264,2]
[403992326,1769704242312,-250.0,0.00016264,2]
[403992327,1769704242322,-1000.0,0.00016264,2]
[403992328,1769704242331,-250.0,0.00016264,2]
[403992329,1769704242341,-1000.0,0.00016264,2]
[403992330,1769704242350,-250.0,0.00016264,2]
[403992331,1769704242360,-1000.0,0.00016264,2]
[403992332,1769704242370,-1000.0,0.00016264,2]
[403992333,1769704242380,-250.0,0.00016264,2]
[403992334,1769704242390,-1000.0,0.00016264,2]
[403992335,1769704242401,-250.0,0.00016264,2]
[403992336,1769704242411,-1000.0,0.00016264,2]
[403992337,1769704242420,-1000.0,0.00016264,2]
[403992338,1769704242430,-1000.0,0.00016264,2]
[403992339,1769704242439,-1000.0,0.00016264,2]
[403992340,1769704242448,-1000.0,0.00016264,2]
[403992341,1769704242458,-500.0,0.00016264,2]
[403992342,1769704242467,-152.86962153,0.00016264,2]
[403992343,1769704242476,-500.0,0.00016264,2]
[403992344,1769704242485,-500.0,0.00016264,2]
[403992345,1769704242494,-500.0,0.00016264,2]
[403992346,1769704242502,-500.0,0.00016264,2]
[403992347,1769704242511,-500.0,0.00016264,2]
[403992348,1769704242521,-500.0,0.00016264,2]
[403992349,1769704242531,-202.66289745,0.00016264,2]
[403992350,1769704242540,-500.0,0.00016264,2]
[403992351,1769704242549,-500.0,0.00016264,2]
[403992352,1769704242563,-500.0,0.00016264,2]
[403992353,1769704242572,-500.0,0.00016264,2]
[403992354,1769704242582,-582.77228948,0.00016264,2]
[403992355,1769704242591,-721.12765535,0.00016264,2]
[403992356,1769704242602,-217.15233878,0.00016319,2]
[403992357,1769704242611,-225.18697532,0.00016374,2]
[403992358,1769704242621,-233.51889341,0.00016429,2]
[403992359,1769704242630,-500.0,0.00016437,2]
[403992360,1769704242641,-571.17753292,0.00016437,2]
[403992361,1769704242652,-500.0,0.00016437,2]
[403992362,1769704242662,-500.0,0.00016437,2]
[403992363,1769704242671,-500.0,0.00016437,2]
[403992364,1769704242681,-500.0,0.00016437,2]
[403992365,1769704242691,-500.0,0.00016437,2]
[403992366,1769704242700,-299.80188279,0.00016437,2]
[403992367,1769704242710,-417.73,0.00016437,2]
[403992368,1769704242723,-500.0,0.00016438,2]
[403992369,1769704242732,-477.5181344,0.00016438,2]
[403992370,1769704242742,-2665.68143375,0.00016438,2]
[403992371,1769704242751,-2665.68143375,0.00016438,2]
[403992372,1769704242761,-2665.68143375,0.00016438,2]
[403992373,1769704242770,-2665.68143375,0.00016438,2]
[403992374,1769704242780,-2665.68143375,0.00016438,2]
[403992376,1769704242789,-2665.68143375,0.00016438,2]
[403992378,1769704242799,-2665.68143375,0.00016438,2]
[403992380,1769704242808,-2665.68143375,0.00016438,2]
[403992382,1769704242817,-2665.68143375,0.00016438,2]
[403992384,1769704242827,-2665.68143375,0.00016438,2]
[403992386,1769704242836,-2665.68143375,0.00016438,2]
[403992388,1769704242845,-2665.68143375,0.00016438,2]
[403992390,1769704242855,-2665.68143375,0.00016438,2]
[403992392,1769704242865,-2665.68143375,0.00016438,2]
[403992394,1769704242875,-2665.68143375,0.00016438,2]
[403992396,1769704242890,-2665.68143375,0.00016438,2]
[403992398,1769704242903,-2665.68143375,0.00016438,2]
[403992399,1769704242912,-2665.68143375,0.00016438,2]
[403992400,1769704242922,-2665.68143375,0.00016438,2]
[403992401,1769704242931,-2665.68143375,0.00016438,2]
[403992402,1769704242941,-2665.68143375,0.00016438,2]
[403992403,1769704242950,-2665.68143375,0.00016438,2]
[403992404,1769704242960,-2665.68143375,0.00016438,2]
[403992405,1769704242969,-2665.68143375,0.00016438,2]
[403992406,1769704242980,-2665.68143375,0.00016438,2]
[403992407,1769704242990,-2665.68143375,0.00016438,2]
[403992408,1769704243000,-2665.68143375,0.00016438,2]
[403992409,1769704243009,-2665.68143375,0.00016438,2]
[403992410,1769704243019,-2665.68143375,0.00016438,2]
[403992411,1769704243028,-2665.68143375,0.00016438,2]
[403992412,1769704243037,-2665.68143375,0.00016438,2]
[403992413,1769704243047,-2665.68143375,0.00016438,2]
[403992414,1769704243056,-2665.68143375,0.00016438,2]
[403992415,1769704243066,-2665.68143375,0.00016438,2]
[403992416,1769704243076,-2665.68143375,0.00016438,2]
[403992417,1769704243085,-2665.68143375,0.00016438,2]
[403992418,1769704243095,-2665.68143375,0.00016438,2]
[403992419,1769704243105,-2665.68143375,0.00016438,2]
[403992420,1769704243114,-2665.68143375,0.00016438,2]
[403992421,1769704243124,-2665.68143375,0.00016438,2]
[403992422,1769704243133,-2665.68143375,0.00016438,2]
[403992423,1769704243142,-2665.68143375,0.00016438,2]
[403992424,1769704243152,-2659.88647412,0.00016438,2]
[403992425,1769704243161,-2659.88647412,0.00016438,2]
[403992426,1769704243171,-2659.88647412,0.00016438,2]
[403992427,1769704243181,-2659.88647412,0.00016438,2]
[403992428,1769704243191,-2659.88647412,0.00016438,2]
[403992429,1769704243200,-2659.88647412,0.00016438,2]
[403992430,1769704243211,-2659.88647412,0.00016438,2]
[403992431,1769704243221,-2659.88647412,0.00016438,2]
[403992432,1769704243231,-2659.88647412,0.00016438,2]
[403992433,1769704243241,-2659.88647412,0.00016438,2]
[403992434,1769704243251,-2659.88647412,0.00016438,2]
[403992435,1769704243261,-2659.88647412,0.00016438,2]
[403992436,1769704243271,-2659.88647412,0.00016438,2]
[403992437,1769704243281,-2659.88647412,0.00016438,2]
[403992438,1769704243291,-2659.88647412,0.00016438,2]
[403992439,1769704243300,-2659.88647412,0.00016438,2]
[403992440,1769704243310,-2659.88647412,0.00016438,2]
[403992441,1769704243319,-2659.88647412,0.00016438,2]
[403992442,1769704243328,-2659.88647412,0.00016438,2]
[403992443,1769704243338,-2659.88647412,0.00016438,2]
[403992444,1769704243348,-2659.88647412,0.00016438,2]
[403992445,1769704243357,-2659.88647412,0.00016438,2]
[403992446,1769704243367,-2659.88647412,0.00016438,2]
[403992447,1769704243376,-2659.88647412,0.00016438,2]
[403992448,1769704243386,-2659.88647412,0.00016438,2]
[403992449,1769704243396,-2659.88647412,0.00016438,2]
[403992450,1769704243406,-2659.88647412,0.00016438,2]
[403992451,1769704243416,-2659.88647412,0.00016438,2]
[403992452,1769704243425,-2659.88647412,0.00016438,2]
[403992453,1769704243435,-275.96,0.00016438,2]
[403992454,1769704243445,-800.0,0.00016438,2]
[403992455,1769704243454,-150.26821108,0.00016442,2]
[403992456,1769704243464,-242.15909246,0.00016484,2]
[403992457,1769704243474,-587.0,0.00016513,2]
[403992458,1769704243483,-1000.0,0.00016521,2]
[403992459,1769704243492,-1000.0,0.00016521,2]
[403992460,1769704243502,-1000.0,0.00016521,2]
[403992461,1769704243512,-1000.0,0.00016521,2]
[403992462,1769704243523,-1000.0,0.00016521,2]
[403992463,1769704243533,-1000.0,0.00016521,2]
[403992464,1769704243542,-251.11897888,0.00016539,2]
[403992465,1769704243552,-260.4103811,0.00016594,2]
[403992466,1769704243565,-2351.0,0.00016639,2]
[403992467,1769704243574,-270.0455652,0.00016649,2]
[403992468,1769704243583,-280.03725112,0.00016704,2]
[403992469,1769704243592,-290.39862941,0.00016759,2]
[403992470,1769704243603,-181.08010149,0.00016812,2]
[403992471,1769704243613,-367.66577198,0.00016812,2]
[403992472,1769704243623,-151.0,0.00016812,2]
[403992473,1769704243634,-885.86649465,0.00016812,2]
[403992474,1769704243643,-301.1433787,0.00016814,2]
[403992475,1769704243654,-157.74830618,0.000169,2]
[403992476,1769704243663,-10000.0,0.00016968,2]
[403992477,1769704243673,-210.45355858,0.0001699,2]
[403992478,1769704243682,-673853.75943846,0.00017,2]
[403992479,1769704243691,-160.0,0.00017,2]
[403992480,1769704243701,-1597.57754792,0.00017,2]
[403992481,1769704243711,-645.0,0.00017033,2]
[403992482,1769704243720,-449.27,0.00017036,2]
[403992483,1769704243729,-1500.0,0.00017068,2]
[403992484,1769704243739,-226.99112244,0.00017068,2]
[403992485,1769704243749,-1413.89753302,0.00017068,2]
[403992486,1769704243759,-1500.0,0.00017068,2]
[403992487,1769704243768,-504.26926601,0.00017068,2]
[403992488,1769704243778,-157.74830617,0.0001715,2]
[403992489,1769704243787,-500.0,0.00017151,2]
[403992490,1769704243797,-500.0,0.00017178,2]
[403992491,1769704243806,-500.0,0.00017178,2]
[403992492,1769704243815,-500.0,0.00017178,2]
[403992493,1769704243826,-500.0,0.00017178,2]
[403992494,1769704243836,-1650.0,0.000172,2]
[403992495,1769704243845,-1869.0,0.000173,2]
[403992496,1769704243855,-645.0,0.00017334,2]
[403992497,1769704243864,-1660.17763539,0.00017358,2]
[403992498,1769704243875,-187.78006525,0.0001736,2]
[403992499,1769704243885,-151.0,0.0001736,2]
[403992500,1769704243895,-918.64355495,0.0001736,2]
[403992501,1769704243907,-469.09,0.00017378,2]
[403992502,1769704243916,-500.0,0.00017379,2]
[403992503,1769704243926,-157.74830617,0.000174,2]
[403992504,1769704243936,-152.3,0.000174,2]
[403992505,1769704243946,-2778.0,0.0001746,2]
[403992506,1769704243955,-645.0,0.00017474,2]
[403992507,1769704243965,-152.3,0.0001749,2]
[403992508,1769704243974,-152.3,0.0001749,2]
[403992509,1769704243985,-259405.78343803,0.000175,3]
[403992510,1769704243995,-150.0,0.000175,2]
[403992511,1769704244004,-1605.67006899,0.000175,2]
[403992512,1769704244014,-736.0,0.00017508,2]
[403992513,1769704244023,-2778.0,0.00017511,2]
[403992514,1769704244033,-188.760807,0.00017533,2]
[403992515,1769704244043,-1600.0,0.00017534,2]
[403992516,1769704244052,-622.162,0.00017569,2]
[403992517,1769704244061,-3478.0,0.00017569,2]
[403992518,1769704244070,-685.175,0.00017569,2]
[403992519,1769704244079,-1500.0,0.000176,2]
[403992520,1769704244088,-500.0,0.00017609,2]
[403992521,1769704244097,-25000.0,0.0001761,3]
[403992522,1769704244107,-2000.0,0.00017616,2]
[403992523,1769704244117,-2000.0,0.00017616,2]
[403992524,1769704244126,-25000.0,0.00017618,3]
[403992525,1769704244136,-152.3,0.00017626,2]
[403992526,1769704244145,-25000.0,0.00017627,3]
[403992527,1769704244154,-334.5472959,0.00017633,2]
[403992528,1769704244163,-25000.0,0.00017636,3]
[403992529,1769704244173,-25000.0,0.00017645,3]
[403992530,1769704244182,-25000.0,0.00017654,3]
[403992531,1769704244191,-25000.0,0.00017662,3]
[403992532,1769704244200,-782.1570349,0.000177,2]
[403992533,1769704244214,-403.0,0.000177,5]
[403992534,1769704244223,-645.0,0.00017706,2]
[403992535,1769704244232,-188.76080698,0.00017717,2]
[403992536,1769704244241,-2500.0,0.000178,2]
[403992537,1769704244251,-152.3,0.00017837,2]
[403992538,1769704244260,-25000.0,0.00017838,3]
[403992539,1769704244269,-25000.0,0.00017847,3]
[403992540,1769704244278,-151.0,0.00017853,2]
[403992541,1769704244287,-25000.0,0.00017856,3]
[403992542,1769704244296,-25000.0,0.00017856,3]
[403992543,1769704244305,-1001.35373168,0.0001786,2]
[403992544,1769704244314,-25000.0,0.00017865,3]
[403992545,1769704244323,-25000.0,0.00017874,3]
[403992546,1769704244332,-152.3,0.00017881,2]
[403992547,1769704244342,-25000.0,0.00017882,3]
[403992548,1769704244352,-25000.0,0.00017891,3]
[403992549,1769704244362,-645.0,0.00017897,2]
[403992550,1769704244371,-500.0,0.00017899,2]
[403992552,1769704244380,-500.0,0.00017899,2]
[403992554,1769704244389,-500.0,0.00017899,2]
[403992556,1769704244398,-500.0,0.00017899,2]
[403992558,1769704244409,-500.0,0.00017899,2]
[403992559,1769704244418,-500.0,0.00017899,2]
[403992561,1769704244427,-500.0,0.00017899,2]
[403992562,1769704244437,-500.0,0.00017899,2]
[403992563,1769704244446,-844.13721699,0.00017899,2]
[403992564,1769704244456,-500.0,0.00017899,2]
[403992565,1769704244465,-844.13721699,0.00017899,2]
[403992566,1769704244474,-844.13721699,0.00017899,2]
[403992567,1769704244483,-844.13721699,0.000179,2]
[403992568,1769704244492,-25000.0,0.000179,3]
[403992569,1769704244501,-250.0,0.000179,5]
[403992570,1769704244511,-250.0,0.000179,5]
[403992571,1769704244520,-250.0,0.000179,5]
[403992572,1769704244529,-250.0,0.000179,5]
[403992573,1769704244538,-250.0,0.000179,5]
[403992574,1769704244547,-250.0,0.000179,5]
[403992575,1769704244560,-250.0,0.000179,5]
[403992576,1769704244569,-250.0,0.000179,5]
[403992577,1769704244579,-250.0,0.000179,5]
[403992578,1769704244589,-250.0,0.000179,5]
[403992579,1769704244600,-250.0,0.000179,5]
[403992580,1769704244610,-250.0,0.000179,5]
[403992581,1769704244619,-250.0,0.000179,5]
[403992582,1769704244628,-250.0,0.000179,5]
[403992583,1769704244637,-250.0,0.000179,5]
[403992584,1769704244646,-291.517907,0.000179,5]
[403992585,1769704244658,-1906.57829553,0.000179,3]
[403992586,1769704244668,-769.53906915,0.000179,2]
[403992587,1769704244677,-72759.52270356,0.000179,2]
[403992588,1769704244687,-12673.82723928,0.000179,2]
[403992589,1769704244696,-7345.80987472,0.000179,2]
[403992590,1769704244706,-8614.0,0.000179,2]
[403992591,1769704244715,-194.72792766,0.00017908,2]
[403992592,1769704244724,-151.0,0.00017908,2]
[403992593,1769704244735,-952.63336648,0.00017908,2]
[403992594,1769704244744,-500.0,0.00017973,2]
[403992595,1769704244754,-500.0,0.00017973,2]
[403992596,1769704244763,-500.0,0.00017973,2]
[403992597,1769704244773,-500.0,0.00017973,2]
[403992598,1769704244782,-500.0,0.00017973,2]
[403992599,1769704244791,-500.0,0.00017973,2]
[403992600,1769704244800,-500.0,0.00017973,2]
[403992601,1769704244809,-500.0,0.00017973,2]
[403992602,1769704244819,-494.98211284,0.00017973,2]
[403992603,1769704244828,-500.0,0.00017973,2]
[403992604,1769704244837,-368.88723017,0.00017973,2]
[403992605,1769704244847,-628.44291984,0.00017973,2]
[403992606,1769704244856,-500.0,0.00017973,2]
[403992607,1769704244865,-500.0,0.00017973,2]
[403992608,1769704244874,-500.0,0.00017973,2]
[403992609,1769704244884,-150.25668222,0.00017973,2]
[403992610,1769704244893,-500.0,0.00017973,2]
[403992611,1769704244903,-500.0,0.00017973,2]
[403992612,1769704244912,-500.0,0.00017973,2]
[403992613,1769704244922,-500.0,0.00017973,2]
[403992614,1769704244931,-500.0,0.00017973,2]
[403992615,1769704244940,-300.09,0.00017973,2]
[403992616,1769704244949,-160.32855491,0.00017973,2]
[403992617,1769704244959,-500.0,0.00017973,2]
[403992618,1769704244969,-503.36004103,0.00017973,2]
[403992619,1769704244978,-500.0,0.00017973,2]
[403992620,1769704244987,-500.0,0.00017973,2]
[403992621,1769704244996,-500.0,0.00017973,2]
[403992622,1769704245005,-500.0,0.00017973,2]
[403992623,1769704245015,-500.0,0.00017973,2]
[403992624,1769704245025,-500.0,0.00017973,2]
[403992625,1769704245034,-500.0,0.00017973,2]
[403992626,1769704245043,-167.92295852,0.00017973,2]
[403992627,1769704245053,-500.0,0.00017973,2]
[403992628,1769704245062,-500.0,0.00017973,2]
[403992629,1769704245071,-500.0,0.00017973,2]
[403992630,1769704245082,-485.97916309,0.00017973,2]
[403992631,1769704245092,-487.0,0.00017973,2]
[403992632,1769704245101,-487.0,0.00017973,2]
[403992633,1769704245111,-487.0,0.00017973,2]
[403992634,1769704245120,-487.0,0.00017973,2]
[403992635,1769704245129,-487.0,0.00017973,2]
[403992636,1769704245140,-487.0,0.00017973,2]
[403992637,1769704245149,-526.65,0.00017973,2]
[403992638,1769704245159,-152.3,0.0001798,2]
[403992639,1769704245168,-29216.83021418,0.0001799,2]
[403992640,1769704245177,-210.45355858,0.0001799,2]
[403992641,1769704245185,-26292.512519,0.00017992,2]
[403992642,1769704245194,-151.0,0.00017997,2]
[403992643,1769704245203,-500.0,0.00017998,2]
[403992644,1769704245214,-300.0,0.00017999,2]
[403992645,1769704245225,-300.0,0.00017999,2]
[403992646,1769704245234,-666.0,0.00017999,2]
[403992647,1769704245243,-300.0,0.00017999,2]
[403992648,1769704245254,-500.0,0.00017999,2]
[403992649,1769704245264,-500.0,0.00017999,2]
[403992650,1769704245273,-500.0,0.00017999,2]
[403992651,1769704245282,-500.0,0.00017999,2]
[403992652,1769704245291,-500.0,0.00017999,2]
[403992653,1769704245301,-394.32,0.00017999,2]
[403992654,1769704245310,-500.0,0.00017999,2]
[403992655,1769704245319,-500.0,0.00017999,2]
[403992656,1769704245328,-500.0,0.00017999,2]
[403992657,1769704245338,-500.0,0.00017999,2]
[403992658,1769704245347,-500.0,0.00017999,2]
[403992659,1769704245356,-500.0,0.00017999,2]
[403992660,1769704245365,-500.0,0.00017999,2]
[403992661,1769704245374,-500.0,0.00017999,2]
[403992662,1769704245384,-500.0,0.00017999,2]
[403992663,1769704245393,-647.66859598,0.00017999,2]
[403992664,1769704245403,-500.0,0.00017999,2]
[403992665,1769704245411,-520.23286267,0.00017999,2]
[403992666,1769704245420,-500.0,0.00017999,2]
[403992667,1769704245430,-554.90775112,0.00017999,2]
[403992668,1769704245439,-13998.35686924,0.00017999,2]
[403992669,1769704245448,-500.0,0.00017999,2]
[403992670,1769704245458,-500.0,0.00017999,2]
[403992671,1769704245467,-500.0,0.00017999,2]
[403992672,1769704245476,-500.0,0.00017999,2]
[403992673,1769704245485,-500.0,0.00017999,2]
[403992674,1769704245494,-558.58231824,0.00017999,2]
[403992675,1769704245503,-12037.49230273,0.00017999,2]
[403992676,1769704245513,-1058.0,0.00017999,2]
[403992677,1769704245522,-916.0,0.00017999,2]
[403992678,1769704245531,-1206.637,0.00017999,2]
[403992679,1769704245540,-1207309.67637948,0.00018,2]
[403992687,1769704246868,-848.04437403,0.00016219,2]
[403992688,1769704247108,-269.45,0.00015565,2]
[403992689,1769704247117,-3001.30413539,0.00016219,2]
[403992690,1769704247127,-20889.68332456,0.00016219,2]
[403992691,1769704247136,-153.32539,0.00016855,2]
[403992692,1769704247146,-117.43575028,0.00017084,2]
[403992693,1769704247168,-132.56424972,0.00017084,2]
[403992694,1769704247178,-188.76080698,0.000179,2]
[403992695,1769704247189,-616.58696762,0.00018,2]
[403992696,1769704247203,-790.37876588,0.00018,2]
[403992697,1769704247215,-71672.44352628,0.00018,2]
[403992698,1769704247225,-2989391.90207604,0.00018,2]
[403992699,1769704247235,-326051.2075353,0.00018,2]
[403992700,1769704247246,-500.0,0.00018,3]
[403992701,1769704247255,-1000.0,0.00018,2]
[403992702,1769704247264,-1000.0,0.00018,2]
[403992703,1769704247274,-1000.0,0.00018,2]
[403992704,1769704247283,-1000.0,0.00018,2]
[403992705,1769704247294,-1000.0,0.00018,2]
[403992706,1769704247303,-1000.0,0.00018,2]
[403992707,1769704247312,-1000.0,0.00018,2]
[403992708,1769704247321,-1000.0,0.00018,2]
[403992709,1769704247330,-1000.0,0.00018,2]
[403992710,1769704247339,-1000.0,0.00018,2]
[403992711,1769704247348,-1000.0,0.00018,2]
[403992712,1769704247358,-1000.0,0.00018,2]
[403992713,1769704247366,-1000.0,0.00018,2]
[403992714,1769704247375,-1000.0,0.00018,2]
[403992715,1769704247384,-1000.0,0.00018,2]
[403992716,1769704247393,-1000.0,0.00018,2]
[403992717,1769704247403,-1000.0,0.00018,2]
[403992718,1769704247412,-1000.0,0.00018,2]
[403992719,1769704247422,-1000.0,0.00018,2]
[403992720,1769704247431,-1000.0,0.00018,2]
[403992721,1769704247440,-1000.0,0.00018,2]
[403992722,1769704247450,-1000.0,0.00018,2]
[403992723,1769704247459,-1000.0,0.00018,2]
[403992724,1769704247468,-1000.0,0.00018,2]
[403992725,1769704247477,-1005.85593805,0.00018,2]
[403992726,1769704247487,-1847950.09353317,0.00018,2]
[403992727,1769704247495,-492243.4116269,0.00018,2]
[403992728,1769704247504,-114195.54222308,0.00018,2]
[403992729,1769704247511,-923427.33142998,0.00018,2]
[403992730,1769704247525,-561.54357013,0.00018,2]
[403992731,1769704247536,-8460.3,0.00018,2]
[403992735,1769704247664,-1145.65486394,0.00018,2]
[403992758,1769704268289,10000.01,7.945e-05,2]
[403992759,1769704268327,9434.215636,7.945e-05,2]
[403992762,1769704276086,166.97,0.00013474,2]
[403992763,1769704328421,500.0,0.00013558,2]
[403992765,1769704356979,9500.01,0.00013652,2]
[403992766,1769704357015,10000.01,0.00013652,2]
[403992767,1769704357053,10000.01,0.00013652,2]
[403992768,1769704357092,10000.01,0.00013652,2]
[403992769,1769704357128,10000.01,0.00013652,2]
[403992770,1769704357164,10000.01,0.00013652,2]
[403992771,1769704357199,10000.01,0.00013652,2]
[403992772,1769704357233,10000.01,0.00013652,2]
[403992773,1769704357270,10000.01,0.00013652,2]
[403992774,1769704357304,10000.01,0.00013652,2]
[403992775,1769704360239,592.96090307,0.00010587,2]
[403992776,1769704382177,150.0,0.00013651,2]
[403992777,1769704441501,300.0,0.00013651,2]
[403992792,1769704501349,300.0,0.00013651,2]
[403992793,1769704501422,1200.0,0.00013651,2]
[403992807,1769704532088,-274.81,0.00027397,30]
[403992809,1769704532173,-5151.08996268,0.0003,120]
[403992810,1769704532255,-300.0,0.0003,120]
[403992811,1769704532341,-431.5,0.00031619,30]
[403992813,1769704532422,-274.81,0.00032232,30]
[403992814,1769704532503,-264.13558466,0.00032849,30]
[403992815,1769704532589,-500.0,0.00032876,32]
[403992817,1769704532669,-500.0,0.00032876,37]
[403992818,1769704532749,-500.0,0.00032876,42]